Cogmind - Beta 16.1 @@@ ROGUE MODE // 2026.04.08 @ 17:24:04 Player: microsand Result: Destroyed by L-31 Rogue with Katana Performance ------------- Evolutions (2) 1000 Regions Visited (7) 1400 Robots Destroyed (40) 200 Value Destroyed (1270) 1270 Prototype IDs (2) 40 Alien Tech Used (0) 0 Bonus (355) 355 TOTAL SCORE: 4265 Bonus ------- Follower Combat Kills 155 Entered Garrisons 200 Cogmind --------- Core Integrity 0/550 Matter 285/300 Energy 265/265 System Corruption 0% Temperature Cool (0) Movement Core (250) Ox4 Location -8/Storage Parts ------- > --- POWER (1) -------- Improved Ion Engine > --- PROPULSION (4) --- (None) > --- UTILITY (4) ------ Improved Heat Sink Improved Targeting Computer ECM Suite > --- WEAPON (2) ------- Pulse Rifle Blade Saw > --- INVENTORY (5) ---- Improved Ion Engine Improved EM Shotgun Improved Medium Laser Peak State ------------ > --- POWER ------------ Light Nuclear Core > --- PROPULSION ------- Aluminum Leg Improved Carbon-fiber Leg Improved Carbon-fiber Leg Flexi-carbon Leg > --- UTILITY ---------- Medium Storage Unit Utility Shielding Medium Reactive Plating Hardlight Generator > --- WEAPON ----------- Heavy Ion Cannon Heavy Assault Rifle > --- INVENTORY -------- Improved Ion Engine Improved Ion Engine Improved Heat Sink Structural Scanner Targeting Computer ECM Suite Hacking Suite Heavy Ion Cannon Light Assault Rifle [Rating: 33] Favorites ----------- Power Reinforced Ion Engine Engine Reinforced Ion Engine Power Core Light Nuclear Core Propulsion Aluminum Leg Treads Light Treads Leg Aluminum Leg Utility Improved Heat Sink Device Improved Heat Sink Storage Medium Storage Unit Processor Improved Targeting Computer Hackware Hacking Suite Protection Utility Shielding Weapon Gauss Rifle Energy Gun Salvaging Laser Energy Cannon Heavy Ion Cannon Ballistic Gun Gauss Rifle Slashing Weapon Blade Saw Build | -11 -10 -9 -9 -8 -8 -8 -8 ------- Run | Yrd Mat Mat Min Mat Gar Mat Sto Slots Evolved 4 | . . 2 . 2 . . . Power . | . . . . . . . . Propulsion 2 | . . . . 2 . . . Utility 2 | . . 2 . . . . . Weapon . | . . . . . . . . Parts Attached 48 | 7 1 6 5 5 3 17 4 Power 8 | 1 . 1 . 1 2 2 1 Engine 7 | 1 . 1 . 1 1 2 1 Core 1 | . . . . . 1 . . Reactor . | . . . . . . . . Propulsion 11 | 2 . . 2 2 . 5 . Treads 5 | . . . . . . 5 . Leg 6 | 2 . . 2 2 . . . Wheel . | . . . . . . . . Hover . | . . . . . . . . Flight . | . . . . . . . . Utility 13 | 2 1 2 1 1 . 5 1 Device 5 | 1 . 1 . 1 . 1 1 Storage 2 | 1 1 . . . . . . Processor 1 | . . . . . . 1 . Hackware 1 | . . . . . . 1 . Protection 4 | . . 1 1 . . 2 . Artifact . | . . . . . . . . Weapon 16 | 2 . 3 2 1 1 5 2 Energy Gun 8 | . . 3 . . . 4 1 Energy Cannon 2 | . . . . 1 1 . . Ballistic Gun 5 | 2 . . 2 . . 1 . Ballistic Cannon . | . . . . . . . . Launcher . | . . . . . . . . Special Weapon . | . . . . . . . . Impact Weapon . | . . . . . . . . Slashing Weapon 1 | . . . . . . . 1 Piercing Weapon . | . . . . . . . . Special Melee Weapon . | . . . . . . . . Unidentified Prototypes 2 | . . . . . . 2 . Parts Lost 22 | . . 2 1 2 7 5 5 Power 2 | . . . . . 1 1 . Propulsion 10 | . . . . 2 3 1 4 Utility 3 | . . . 1 . 1 . 1 Weapon 7 | . . 2 . . 2 3 . Highest Loss Streak 7 | . . 2 1 2 7 4 3 To Critical Strikes . | . . . . . . . . Average Backups 6 | . 2 7 8 9 8 3 3 Power 1 | . 1 1 1 . 1 1 1 Propulsion . | . . . 1 1 . . . Utility 3 | . . 4 4 4 4 1 . Weapon 1 | . . 1 1 2 1 . 2 Tool/Special . | . . . . . . . . Unused Backups 6 | . . 1 2 . 1 2 . Power 1 | . . 1 . . . . . Propulsion 1 | . . . . . . 1 . Utility 3 | . . . 2 . 1 . . Weapon 1 | . . . . . . 1 . Tool/Special . | . . . . . . . . Average Slot Usage (%) 88 | . 100 99 97 85 80 65 83 Engine 9 | . 14 11 11 8 2 7 9 Treads 5 | . . . . . . 18 29 Leg 17 | . 28 22 22 23 27 . . Device 12 | . 14 22 12 9 7 10 9 Storage 8 | . 14 11 11 9 7 . . Processor 1 | . . . . . . 2 9 Hackware 1 | . . . . . . 6 . Protection 11 | . . 10 18 18 14 7 8 Energy Gun 5 | . . 17 . . . 10 15 Energy Cannon 1 | . . . . 6 8 . . Ballistic Gun 12 | . 28 4 21 10 6 2 . Peak Build Rating 33 | 7 8 13 26 32 33 25 25 Average Rating 19 | 5 7 11 24 27 26 18 23 On Entrance 13 | . 7 8 13 26 32 . 25 Avg Prop Armor Cover (%) 17 | . 17 . . . . . . Naked Turns 42 | . . . . . 26 16 . Heaviest Build 58 | 12 17 26 49 58 57 29 29 Greatest Support 82 | 20 20 20 35 66 66 82 82 Greatest Overweight (x) 4 | . 3 1 2 1 1 4 . Average Overweight (x) . | . 1 . 1 . . . . Largest Inventory Capacity 10 | 8 10 10 10 10 10 5 5 Average Capacity 8 | 6 8 9 9 10 9 5 5 Most Carried 10 | 2 8 9 9 10 9 5 4 Average Carried 6 | . 2 7 8 9 8 3 3 Final Capacity 10 | 8 10 8 10 10 5 5 5 Final Carried 8 | 1 8 8 8 8 5 4 3 Class Distribution -------------------- 60% | Scavenger-Mutant 39% | Mutant Dominant Class ---------------- Mutant | -10/Materials Scavenger-Mutant | -9/Materials Scavenger-Mutant | -9/Mines Mutant | -8/Materials Mutant | -8/Garrison Scavenger-Mutant | -8/Materials Scavenger-Mutant | -8/Storage Resources | -11 -10 -9 -9 -8 -8 -8 -8 ----------- Run | Yrd Mat Mat Min Mat Gar Mat Sto Matter Collected 1156 | 174 152 131 145 186 49 299 20 Remotely . | . . . . . . . . Salvage Created 1755 | 100 . 264 72 276 146 671 226 Parts 94 | 8 . 23 2 15 5 31 10 Haulers Intercepted 1 | . . . . . . 1 . Recyclers Shooed 1 | . . . . . . 1 . Parts Field Recycled . | . . . . . . . . Retrieved Matter . | . . . . . . . . Parts Self-Destructed . | . . . . . . . . Prevented . | . . . . . . . . Parts Restored . | . . . . . . . . Kills | -11 -10 -9 -9 -8 -8 -8 -8 ------- Run | Yrd Mat Mat Min Mat Gar Mat Sto Combat Hostiles Destroyed 32 | . . 8 4 5 3 8 4 Melee 3 | . . . . . . . 3 Guns 25 | . . 8 4 3 2 7 1 Cannons 3 | . . . . 2 1 . . AOE 1 | . . . . . . 1 . Classes Destroyed 15 | 2 . 5 1 2 . 2 3 Builder 1 | . . . . 1 . . . Tunneler 1 | 1 . . . . . . . Hauler 1 | . . . . . . 1 . Recycler 3 | 1 . . . . . 2 . Mechanic 1 | . . . . . . . 1 Operator 1 | . . 1 . . . . . Watcher 2 | . . . . . . 2 . Swarmer 6 | . . 4 2 . . . . Grunt 13 | . . 2 . 2 3 4 2 Brawler 2 | . . 1 . . . 1 . Duelist 1 | . . . . . . . 1 Protector 1 | . . . . . . . 1 Sentry 5 | . . 1 . 1 . 3 . Hunter 2 | . . . . 2 . . . Assembled 2 | . . . 2 . . . . Best Kill Streak 4 | 1 . 4 2 2 3 2 3 Combat Bots Only 4 | . . 4 2 2 3 2 3 Max Kills in Single Turn 2 | 1 . 2 1 1 1 1 1 Gunslinging 1 | . . 1 . . . . . Exploded 1 | . . . . . . 1 . Melee 1 | . . . . . . . 1 Uniques/NPCs Destroyed . | . . . . . . . . Combat | -11 -10 -9 -9 -8 -8 -8 -8 -------- Run | Yrd Mat Mat Min Mat Gar Mat Sto Hostile Shots Fired 388 | . . 45 30 50 115 69 79 Missed 108 | . . 11 6 17 30 19 25 Hits 280 | . . 34 24 33 85 50 54 Melee 20 | . . 2 3 . . 1 14 Projectile 260 | . . 32 21 33 85 49 40 AOE 1 | . . . . 1 . . . Critical Strikes 11 | . . 1 1 3 2 2 2 Damage Taken 3795 | . . 388 212 286 1052 751 1106 Core 654 | . . 66 33 13 220 175 147 Absorbed by Shields 356 | . . . . 116 240 . . Redirected to Shielding 32 | . . 16 4 3 9 . . Ignored by Resistances 251 | . . . 61 93 51 46 . Core Remaining (%) 91 | 100 100 . 75 . . . . Volleys Fired 139 | 9 5 26 12 19 14 39 15 Largest 2 | 2 2 2 2 2 2 2 2 Hottest 130 | 40 40 60 51 93 130 101 119 Shots Fired 253 | 18 10 52 25 38 28 52 30 Gun 227 | 18 10 52 25 27 13 52 30 Cannon 26 | . . . . 11 15 . . Launcher . | . . . . . . . . Special . | . . . . . . . . Kinetic 135 | 18 10 17 25 27 13 25 . Thermal 98 | . . 35 . 11 15 14 23 Explosive . | . . . . . . . . Electromagnetic 20 | . . . . . . 13 7 Robot Hit Streak 14 | 9 3 9 3 12 14 8 13 Robot Miss Streak 6 | 2 6 3 3 3 3 4 2 Penetration Max 1 | . . . . 1 . . . Secondary Targets 3 | . . 1 1 . . 1 . Max Gunslinging Chain 1 | . . 1 1 . . 1 . Shots Hit Robots 189 | 11 2 34 12 26 19 44 41 Core Hits 93 | 4 1 16 6 11 9 27 19 Critical Kills . | . . . . . . . . Critical Parts Destroyed . | . . . . . . . . Critical Strikes 4 | . . . . . . . 4 Sever 4 | . . . . . . . 4 Melee Attacks 21 | . . . . . . . 21 Impact . | . . . . . . . . Slashing 21 | . . . . . . . 21 Piercing . | . . . . . . . . Sneak Attacks . | . . . . . . . . Combat Hostiles . | . . . . . . . . Follow-up Attacks . | . . . . . . . . Damage Inflicted 3724 | 116 19 332 244 527 420 862 1204 Guns 2303 | 116 19 332 244 255 178 753 406 Cannons 514 | . . . . 272 242 . . Explosions 652 | . . . . . . 109 543 Melee 255 | . . . . . . . 255 Ramming . | . . . . . . . . Kinetic 1334 | 116 19 141 244 255 178 381 . Thermal 1450 | . . 191 . 272 242 263 482 Explosive 350 | . . . . . . . 350 Electromagnetic 335 | . . . . . . 218 117 Impact . | . . . . . . . . Slashing 255 | . . . . . . . 255 Piercing . | . . . . . . . . Highest Corruption 1 | . . . 1 . . . . Average Corruption 1 | . . . 1 . . . . Corruption Purged . | . . . . . . . . Corruption Blocked . | . . . . . . . . Effects 6 | . . . 6 . . . . Message Errors 3 | . . . 3 . . . . Heat Flow Errors 1 | . . . 1 . . . . Data Loss (minor) 1 | . . . 1 . . . . Misfires 1 | . . . 1 . . . . Overload Shots . | . . . . . . . . Overflow Damage 23 | . . . . . 3 . 20 Projectiles 3 | . . . . . 3 . . Explosions 20 | . . . . . . . 20 Melee . | . . . . . . . . Knockbacks . | . . . . . . . . Impact . | . . . . . . . . Kinetic . | . . . . . . . . Secondary . | . . . . . . . . Self-Inflicted Damage 92 | . . . . . . 40 52 Shots 3 | . . . . . . 1 2 Rammed . | . . . . . . . . Targets Rammed . | . . . . . . . . Kicked . | . . . . . . . . Crushed . | . . . . . . . . Highest Temperature 343 | . . 24 252 168 343 29 232 Average Temperature 107 | . . 24 140 71 173 14 83 Received Heat Transfer 1339 | . . 138 . 102 451 324 324 Effects 1 | . . . . . 1 . . Energy Bleed 1 | . . . . . 1 . . Siege Activations . | . . . . . . . . Martial Activations . | . . . . . . . . Shielding Activations . | . . . . . . . . Robots Disrupted . | . . . . . . . . Combat Hostiles . | . . . . . . . . Robots Corrupted . | . . . . . . . . Combat Hostiles . | . . . . . . . . Parts Fried 4 | . . . . . . 2 2 Impact Corruptions . | . . . . . . . . Robots Melted . | . . . . . . . . Combat Hostiles . | . . . . . . . . Parts Melted 5 | . . 2 . 1 1 . 1 Heat Transferred 2405 | . . 500 . 370 333 383 819 Parts Sabotaged . | . . . . . . . . Parts Stolen . | . . . . . . . . Parts Stripped . | . . . . . . . . Power Chain Reactions 3 | . . . . . . 1 2 Alert | -11 -10 -9 -9 -8 -8 -8 -8 ------- Run | Yrd Mat Mat Min Mat Gar Mat Sto Maximum Alert Level 1 | . . . . . . . 1 Low Security (%) 99 | 100 100 100 100 100 100 100 97 Level 1 . | . . . . . . . 2 Level 2 . | . . . . . . . . Level 3 . | . . . . . . . . Level 4 . | . . . . . . . . Level 5 . | . . . . . . . . High Security . | . . . . . . . . Max Security . | . . . . . . . . Peak Influence 204 | 5 . 115 55 41 62 50 204 Initial 30 | . . . 30 . 2 . 9 Average 21 | . . 38 5 9 40 18 106 Influence Increases 1080 | 10 . 216 75 150 60 265 304 Destroy 0b10 Robot/C 720 | . . 160 40 100 60 160 200 Destroy 0b10 Robot/NC 55 | 10 . 5 . 5 . 25 10 Destroy Leader 136 | . . 30 . 40 . 46 20 Allied During Kill 19 | . . . . . . . 19 Successful Hack 15 | . . 6 5 4 . . . Disable Machine 30 | . . . 15 . . . 15 Destroy Structure 15 | . . . . 1 . 4 10 Lose Combat Pursuer 90 | . . 15 15 . . 30 30 Influence Decreases 956 | 10 . 137 154 146 64 241 204 Entered New Map 66 | . . . 49 . 2 . 15 Time Decay 664 | 10 . 117 95 146 . 197 99 Lost Part 186 | . . 20 10 . 62 44 50 Lost Ally 40 | . . . . . . . 40 Squads Dispatched 6 | . 1 . . 1 . . 4 Investigation . | . . . . . . . . Extermination . | . . . . . . . . Reinforcement 2 | . 1 . . 1 . . . Assault 2 | . . . . . . . 2 Garrison 2 | . . . . . . . 2 Intercept . | . . . . . . . . Searches Triggered . | . . . . . . . . Construction Impeded . | . . . . . . . . Haulers Reinforced . | . . . . . . . . Active Scanning Responses . | . . . . . . . . Cargo Convoy Interrupts . | . . . . . . . . Stealth | -11 -10 -9 -9 -8 -8 -8 -8 --------- Run | Yrd Mat Mat Min Mat Gar Mat Sto Distress Signals 5 | . 2 1 . . . 2 . Communications Jammed . | . . . . . . . . Distress Signals . | . . . . . . . . Times Spotted 77 | . 2 13 8 6 14 16 18 Peak Tracking Total 9 | . 1 4 4 2 9 6 6 Tactical Retreats 6 | . . 1 1 . . 2 2 Traps | -11 -10 -9 -9 -8 -8 -8 -8 ------- Run | Yrd Mat Mat Min Mat Gar Mat Sto Traps Triggered 4 | . . . 1 . 2 . 1 Indirectly . | . . . . . . . . Trap Hack Attempts . | . . . . . . . . Triggered . | . . . . . . . . Disarmed . | . . . . . . . . Reprogrammed . | . . . . . . . . Reused . | . . . . . . . . Traps Extracted . | . . . . . . . . Installed . | . . . . . . . . Triggered . | . . . . . . . . Machines | -11 -10 -9 -9 -8 -8 -8 -8 ---------- Run | Yrd Mat Mat Min Mat Gar Mat Sto Machines Disabled 2 | . . . 1 . . . 1 Max in Single Turn 1 | . . . 1 . . . 1 Machines Repaired . | . . . . . . . . Machines Dismantled . | . . . . . . . . Machines Sabotaged . | . . . . . . . . Overloaded Fab Kills . | . . . . . . . . Hacking | -11 -10 -9 -9 -8 -8 -8 -8 --------- Run | Yrd Mat Mat Min Mat Gar Mat Sto Machines Accessed 6 | . 1 1 2 1 . 1 . Terminals 4 | . 1 1 1 . . 1 . Fabricators . | . . . . . . . . Repair Stations . | . . . . . . . . Recycling Units . | . . . . . . . . Scanalyzers . | . . . . . . . . Garrison Access 1 | . . . . 1 . . . Total Hacks 17 | . 2 5 5 2 . 3 . Successful 7 | . . 2 3 1 . 1 . Failed 10 | . 2 3 2 1 . 2 . Catastrophic 2 | . . 1 1 . . . . Database Lockouts . | . . . . . . . . Manual 10 | . 2 2 3 . . 3 . Terminals 14 | . 2 5 4 . . 3 . Fabricators . | . . . . . . . . Repair Stations . | . . . . . . . . Recycling Units . | . . . . . . . . Scanalyzers . | . . . . . . . . Garrison Access 2 | . . . . 2 . . . Terminal Hacks 3 | . . 1 2 . . . . Robot Analysis 1 | . . 1 . . . . . Open Door 1 | . . . 1 . . . . Zone Layout 1 | . . . 1 . . . . Fabricator Hacks . | . . . . . . . . Repair Station Hacks . | . . . . . . . . Recycling Unit Hacks . | . . . . . . . . Scanalyzer . | . . . . . . . . Garrison Access Hacks 1 | . . . . 1 . . . Unlock Access 1 | . . . . 1 . . . Unauthorized Hacks 3 | . . 1 1 . . 1 . Terminals 3 | . . 1 1 . . 1 . Botnet 3 | . . 1 1 . . 1 . Fabricators . | . . . . . . . . Repair Stations . | . . . . . . . . Recycling Units . | . . . . . . . . Scanalyzers . | . . . . . . . . Garrison Access . | . . . . . . . . Data Cores Recovered 1 | . . 1 . . . . . Used . | . . . . . . . . Hacking Detections 3 | . 1 . . 1 . 1 . Full Trace Events 1 | . . . . . . 1 . Feedback Events . | . . . . . . . . Feedback Blocked . | . . . . . . . . Robot Schematics Acquired . | . . . . . . . . Robots Built . | . . . . . . . . Authchips . | . . . . . . . . Time . | . . . . . . . . Total Robot Build Rating . | . . . . . . . . Part Schematics Acquired . | . . . . . . . . Parts Built . | . . . . . . . . Authchips . | . . . . . . . . Time . | . . . . . . . . Total Part Build Rating . | . . . . . . . . Part Studies Acquired . | . . . . . . . . Parts Repaired . | . . . . . . . . Time . | . . . . . . . . Parts Recycled . | . . . . . . . . Recycled Matter . | . . . . . . . . Retrieved Matter . | . . . . . . . . Retrieved Components . | . . . . . . . . Parts Scanalyzed . | . . . . . . . . Part Schematics Acquired . | . . . . . . . . Parts Damaged . | . . . . . . . . Bothacking | -11 -10 -9 -9 -8 -8 -8 -8 ------------ Run | Yrd Mat Mat Min Mat Gar Mat Sto Used RIF Installer . | . . . . . . . . Robots Hacked . | . . . . . . . . Non-combat . | . . . . . . . . Combat . | . . . . . . . . Robot Hacks Applied . | . . . . . . . . Relay Couplers Released . | . . . . . . . . Fabnet Peak Effective % . | . . . . . . . . Robots Rewired . | . . . . . . . . Allies Hacked . | . . . . . . . . Hacks Repelled . | . . . . . . . . Allies | -11 -10 -9 -9 -8 -8 -8 -8 -------- Run | Yrd Mat Mat Min Mat Gar Mat Sto Total Allies 2 | . . . . . . . 2 Largest Group 2 | . . . . . . . 2 Highest-Rated Group 62 | . . . . . . . 62 Highest-Rated Ally 31 | . . . . . . . 31 Total Orders . | . . . . . . . . Ally Attacks 33 | . . . . . . . 33 Total Damage 527 | . . . . . . . 527 Kills 7 | . . . . . . . 7 Allies Corrupted . | . . . . . . . . Allies Melted . | . . . . . . . . Intel | -11 -10 -9 -9 -8 -8 -8 -8 ------- Run | Yrd Mat Mat Min Mat Gar Mat Sto Active Infowar (turns) 1078 | 21 375 420 113 . . 134 15 Structural 134 | . . . . . . 134 . Seismic 929 | 21 375 420 113 . . . . ECM 15 | . . . . . . . 15 Robot Analysis Total 1 | . . 1 . . . . . Derelict Logs Recovered 1 | . . . 1 . . . . Drone Launches . | . . . . . . . . Drone Recoveries . | . . . . . . . . Exploration | -11 -10 -9 -9 -8 -8 -8 -8 ------------- Run | Yrd Mat Mat Min Mat Gar Mat Sto Turns Passed 3195 | 155 375 420 790 489 194 547 225 Spaces Moved 1303 | 109 205 164 211 158 113 304 39 Core 287 | 19 109 . . . 51 108 . Treads 235 | . . . . . . 196 39 Legs 781 | 90 96 164 211 158 62 . . Wheels . | . . . . . . . . Hover . | . . . . . . . . Flight . | . . . . . . . . Fastest Speed 50 | 50 120 120 120 120 50 50 156 Average Speed 145 | 107 162 148 192 156 93 124 156 Slowest Speed 260 | 120 200 190 260 190 190 250 156 Overloaded Moves . | . . . . . . . . Propulsion Burnouts . | . . . . . . . . Robots Hopped . | . . . . . . . . Potential Cave-ins . | . . . . . . . . Cave-ins Triggered . | . . . . . . . . Exploration Rate (%) 18 | 3 27 15 24 14 29 27 11 Regions Visited 7 Branch Regions 2 Pre-discovered Areas . | . . . . . . . . Known Exits Taken 1 | . . . . 1 . . . Unknown Exits Taken 5 | 1 1 1 1 . . 1 . Scrap Searched . | . . . . . . . . Spaces Dug . | . . . . . . . . Terrain Destroyed 13 | . . . . 1 . 3 9 Melee . | . . . . . . . . Projectile 1 | . . . . 1 . . . AOE 12 | . . . . . . 3 9 Terrain Rammed . | . . . . . . . . Walls Destroyed . | . . . . . . . . Machines Disabled . | . . . . . . . . Actions | -11 -10 -9 -9 -8 -8 -8 -8 --------- Run | Yrd Mat Mat Min Mat Gar Mat Sto Total 2329 | 127 237 304 572 364 171 424 130 Wait 732 | 1 20 98 332 164 35 31 51 Move 1296 | 108 204 163 210 157 112 303 39 Hop . | . . . . . . . . Pick Up 50 | 2 7 5 6 9 1 20 . Fast Attach 6 | 6 . . . . . . . Attach 39 | 1 . 6 1 7 2 21 1 Detach 6 | . . 2 . 1 . 3 . Swap 19 | . 1 3 6 2 2 2 3 Drop 16 | . . 1 5 5 . 5 . Fire 139 | 9 5 26 12 19 14 39 15 Melee 21 | . . . . . . . 21 Ram . | . . . . . . . . Kick . | . . . . . . . . Crush . | . . . . . . . . Escape Stasis 5 | . . . . . 5 . . Rewire . | . . . . . . . . Trap . | . . . . . . . . Miscellaneous . | . . . . . . . . Route ------- -11/Scrapyard -10/Materials -9/Materials -9/Mines -8/Materials (discovered 2 exits: Fac / Gar) -8/Garrison -8/Materials -8/Storage History --------- Turn | Location | Event 18 | -11/Scrapyard | Discovered new exit (range 16) 156 | -11/Scrapyard | Entered Materials 157 | -10/Materials | Met a group of wandering Federalists 309 | -10/Materials | Build established: Mutant 486 | -10/Materials | Discovered new exit (range 16) 531 | -10/Materials | Entered another Materials area 531 | -9/Materials | Evolved 2 slots: Utility x2 760 | -9/Materials | Discovered new exit (range 8) 825 | -9/Materials | Build established: Scavenger-Mutant 951 | -9/Materials | Entered Mines 952 | -9/Mines | Assembled infested the area 957 | -9/Mines | Assisted by a Guerilla fighting off Assembled 959 | -9/Mines | Met a Derelict who couldn't figure out how to use a Trap Extractor 1128 | -9/Mines | Discovered new exit (range 10) 1141 | -9/Mines | Learned 2 Materials zone layouts 1158 | -9/Mines | Found a damaged Exp. Sensor Array with a note attached 1741 | -9/Mines | Entered Materials 1741 | -8/Materials | Evolved 2 slots: Propulsion x2 1742 | -8/Materials | Identified exit to Factory 2131 | -8/Materials | Build established: Mutant 2228 | -8/Materials | Identified exit to Garrison 2230 | -8/Materials | Entered Garrison 2242 | -8/Garrison | Triggered checkpoint 2342 | -8/Garrison | Triggered checkpoint 2396 | -8/Garrison | Triggered checkpoint 2398 | -8/Garrison | Released all parts (6) 2420 | -8/Garrison | Discovered new exit (range 10) 2424 | -8/Garrison | Entered Materials 2427 | -8/Materials | Lost 7 parts (1p3n1u2w) 2556 | -8/Materials | Core integrity fell below 50% 2673 | -8/Materials | Lost 4 parts (1n3w) 2809 | -8/Materials | Build established: Scavenger-Mutant 2965 | -8/Materials | Discovered new exit (range 4) 2971 | -8/Materials | Entered Storage 2982 | -8/Storage | Met a pair of Derelict thieves 3025 | -8/Storage | Garrison activated, responded to threat 3112 | -8/Storage | Core integrity fell below 20% 3196 | -8/Storage | Destroyed by L-31 Rogue with Katana Last Messages --------------- 03153_ R-06 Scavenger collects Hvy. Laser. 03156_ K-01 Serf collects debris. 03157_ G-47 Trooper destroyed. 03159_ K-01 Serf collects debris. 03163_ Lgt. Treads destroyed. 03163_ K-01 Serf collects debris. 03172_ G-47 Trooper destroyed. 03173_ K-01 Serf collects debris. 03175_ L-31 Rogue Imp. Ion Engine severed. 03176_ K-01 Serf collects debris. 03179_ Hvy. Armor Plating destroyed. 03179_ K-01 Serf collects debris. 03182_ L-31 Rogue Imp. Aluminum Leg severed. 03183_ K-01 Serf collects debris. 03188_ U-05 Engineer lays Concrete. 03190_ K-01 Serf collects debris. 03192_ U-05 Engineer lays Concrete. 03193_ K-01 Serf collects debris. 03194_ Adv. Treads destroyed. 03194_ U-05 Engineer builds a Wall. Map ----- +----------------------------------------------------+ | | | | | | | | | | | | | | | | | | | | | | | | | | | | | | | | | | | ????????????????????????????????????????????? | | ????????????????????????????????????????????? | | ????????????????????????????????????????????? | | ????????????????????????????????????????????? | | ??????????????????#####?????????????????????? | | ??????????????????#===??????????????????????? | | ??????????????????#===??????????????????????? | | ??????????????????#"%"##????????????????????? | | ??????????????????#!@=T####?????????????????? | | ??????###############l#=;;##????????????????? | | ??????# ! Yl=% ######???????????? | | ??????# Y% ????? | | ??????# ku ????? | | ??????######+######### #%% ????? | | ??????????## #??? % ########?????? | | ??????????#T #?? #????????????? | | ?????????###" "##? """ #% #????????????? | | ?????????# !## """ % #????????????? | | ?????????#== ## """ [[!#????????????? | | ?????????# = ==## ? # [[!#????????????? | | ?????????#= = =#???"" # [! #????????????? | | ?????????########???"" # " ????????????? | | ?????????????????????" ? " ???????????? | | ????????????????????? ? ??????????? | | ????????????????????? ? #####????????????? | | ????????????????????? ? #????????????????? | | ???????????????????????? ?????????????????? | | ????????????????????????????????????????????? | | ????????????????????????????????????????????? | | ????????????????????????????????????????????? | | ????????????????????????????????????????????? | | ????????????????????????????????????????????? | | ????????????????????????????????????????????? | +----------------------------------------------------+ Best States ------------- Heat Dissipation 45 Energy Generation 14 Energy Capacity 265 Matter Stores 300 Matter Capacity 300 Sight Range 16 Terrain Scan Density 10 ECM Strength 1 Armor Coverage 600 Resistance: KI 30 Utility Shielding 33 Evasion (%) 55 Targeting Accuracy 6 Recoil Reduction 4 Offensive Hacking 10 Item Schematics ----------------- None Robot Schematics ------------------ None Fabricated ------------ Nothing Repaired ---------- Nothing Studied --------- None Alien Tech Used ----------------- None Achievements -------------- Live, Flee, And Rebuild Challenges ------------ None Game ------ Seed HellfireDataCoupler Manual? 0 Play Time 00:34:04 Cumulative 27.5 hours Start 2026.03.27 @ 15:21:35 End 2026.04.08 @ 17:24:04 Sessions 2 Manual Loads 0 Difficulty Rogue Special Mode None Game No. 73 Rogue 73 Adventurer 0 Explorer 0 Win Type - Total 1 Types 1/0/0/0/0/0/0/0/0/0 Lore% 37 Gallery% 29 Achievement% 24 Wizard Run 0 Options --------- Layout 1 ASCII 0 Keyboard 0 Movement Numpad Keybinds 0 Fullscreen 2 Font 24/Terminus Map View 50x35 Zoom Use 0% Tactical HUD 1 Map Filters NONE Filters NONE Steam 1 RUN: 6add4be4-3661-4c18-8a36-d19b8e0d4393